bitfinex/quotes_SOLUSD_20241113
["timestamp","ask_amount","ask_price","bid_price","bid_amount"]
[1731511941015,161.6,214.74,214.71,37.01926991]
[1731511941225,37.01926991,214.81,214.71,37.01926991]
[1731511941226,161.6,214.78,214.71,37.01926991]
[1731511941429,12.8575,214.83,214.71,37.01926991]
[1731511941430,161.6,214.82,214.77,37.01926991]
[1731511941624,33.2726,214.88,214.72,37.01926991]
[1731511941625,161.6,214.86,214.8,37.01926991]
[1731511941940,0.80559435,214.95,214.72,37.01926991]
[1731511941941,161.6,214.94,214.84,37.01926991]
[1731511942118,161.6,214.97,214.91,37.01926991]
[1731511942423,33.2726,214.98,214.95,37.01926991]
[1731511942424,161.6,214.96,214.95,37.01926991]
[1731511942635,161.6,214.96,214.71,70.0]
[1731511942636,161.6,214.92,214.75,0.1]
[1731511942924,161.6,214.92,214.83,37.01926991]
[1731511942925,161.6,214.91,214.83,37.01926991]
[1731511943096,198.61926991,214.9,214.81,37.01926991]
[1731511943290,4.6521,214.96,214.77,37.01926991]
[1731511943291,37.01926991,214.86,214.77,37.01926991]
[1731511943496,37.01926991,214.82,214.72,37.01926991]
[1731511943710,37.01926991,214.82,214.6,0.1]
[1731511943711,37.01926991,214.8,214.71,37.01926991]
[1731511944118,37.01926991,214.8,214.6,0.2]
[1731511944119,20.0,214.78,214.69,37.01926991]
[1731511944299,161.6,214.77,214.69,37.01926991]
[1731511944501,57.01926991,214.78,214.69,37.01926991]
[1731511944502,161.6,214.76,214.69,37.01926991]
[1731511944715,20.0,214.74,214.67,37.01926991]
[1731511944913,57.01926991,214.72,214.63,37.01926991]
[1731511945116,32.2396,214.64,214.54,37.01926991]
[1731511945416,32.2396,214.64,214.46,0.1]
[1731511945417,20.0,214.62,214.56,37.01926991]
[1731511945616,20.0,214.62,214.46,0.2]
[1731511945816,161.6,214.61,214.57,37.01926991]
[1731511946010,161.6,214.6,214.57,37.01926991]
[1731511946411,161.6,214.6,214.59,37.01926991]
[1731511946623,20.0,214.63,214.55,37.01926991]
[1731511946935,20.0,214.55,214.32,0.1]
[1731511947145,20.0,214.48,214.4,37.01926991]
[1731511947295,33.1343,214.58,214.27,0.1]
[1731511947296,20.0,214.46,214.38,37.01926991]
[1731511947846,20.0,214.46,214.25,0.4495152]
[1731511947847,20.0,214.41,214.25,0.4495152]
[1731511948135,37.01926991,214.38,214.25,0.4495152]
[1731511948419,20.0,214.34,214.28,37.01926991]
[1731511948915,20.0,214.36,214.28,37.01926991]
[1731511949114,20.0,214.36,214.25,0.4495152]
[1731511949115,37.01926991,214.33,214.25,0.4495152]
[1731511949325,20.0,214.3,214.25,0.4495152]
[1731511949525,20.0,214.3,214.25,37.46878511]
[1731511949711,32.4958,214.35,214.25,37.46878511]
[1731511949712,20.0,214.34,214.29,37.01926991]
[1731511950217,20.0,214.34,214.25,0.4495152]
[1731511950406,32.4958,214.35,214.33,37.01926991]
[1731511950599,12.4235,214.43,214.33,37.01926991]
[1731511950600,161.6,214.42,214.33,37.01926991]
[1731511950799,161.6,214.41,214.36,37.01926991]
[1731511951003,12.4235,214.43,214.28,37.01926991]
[1731511951004,161.6,214.4,214.28,37.01926991]
[1731511951214,161.6,214.39,214.31,0.2]
[1731511951423,161.6,214.39,214.38,37.01926991]
[1731511951721,37.01926991,214.52,214.38,37.01926991]
[1731511951926,37.01926991,214.48,214.4,37.01926991]
[1731511952421,37.01926991,214.48,214.29,20.0]
[1731511952422,161.6,214.47,214.46,37.01926991]
[1731511952621,37.01926991,214.54,214.46,37.01926991]
[1731511952825,161.6,214.53,214.48,37.01926991]
[1731511953005,198.61926991,214.52,214.43,37.01926991]
[1731511953327,161.6,214.52,214.44,37.01926991]
[1731511953634,37.01926991,214.49,214.38,37.01926991]
[1731511953819,37.01926991,214.47,214.38,37.01926991]
[1731511954124,161.6,214.48,214.38,37.01926991]
[1731511954303,0.1,214.51,214.3,0.1]
[1731511954304,161.6,214.47,214.42,37.01926991]
[1731511954512,161.6,214.47,214.28,37.01926991]
[1731511954513,161.6,214.46,214.44,37.01926991]
[1731511954723,161.6,214.46,214.34,0.1]
[1731511954724,161.6,214.45,214.39,37.01926991]
[1731511954929,37.01926991,214.52,214.44,37.01926991]
[1731511955129,161.6,214.51,214.44,37.01926991]
[1731511955304,161.6,214.5,214.42,37.01926991]
[1731511955510,161.6,214.49,214.46,37.01926991]
[1731511955721,13.3016,214.59,214.46,37.01926991]
[1731511955722,161.6,214.48,214.46,37.01926991]
[1731511956107,161.6,214.48,214.29,0.1]
[1731511956304,4.6605,214.57,214.26,20.0]
[1731511956305,161.6,214.47,214.44,37.01926991]
[1731511956501,37.01926991,214.53,214.44,37.01926991]
[1731511956502,161.6,214.46,214.44,37.01926991]
[1731511956732,0.1,214.56,214.4,37.01926991]
[1731511956733,161.6,214.45,214.4,37.01926991]
[1731511957030,161.6,214.48,214.38,0.1]
[1731511957203,161.6,214.58,214.38,0.2]
[1731511957400,198.61926991,214.57,214.48,37.01926991]
[1731511957628,161.6,214.56,214.48,37.01926991]
[1731511957811,161.6,214.56,214.39,37.01926991]
[1731511957812,161.6,214.55,214.5,37.01926991]
[1731511958021,161.6,214.6,214.54,37.01926991]
[1731511958319,161.6,214.71,214.59,37.01926991]
[1731511958625,161.6,214.7,214.62,37.01926991]
[1731511958809,161.6,214.7,214.64,37.01926991]
[1731511959009,161.6,214.69,214.64,37.01926991]
[1731511959828,37.01926991,214.68,214.58,37.01926991]
[1731511960007,161.6,214.67,214.6,37.01926991]
[1731511960207,161.6,214.67,214.62,37.01926991]
[1731511960415,161.6,214.67,214.64,37.01926991]
[1731511960616,161.6,214.66,214.62,37.01926991]
[1731511960962,161.6,214.65,214.64,37.01926991]
[1731511962335,0.1,214.78,214.64,37.01926991]
[1731511962336,161.6,214.71,214.66,0.1]
[1731511962533,161.6,214.73,214.7,37.01926991]
[1731511962716,12.3112,214.83,214.7,37.01926991]
[1731511962717,37.01926991,214.8,214.7,37.01926991]
[1731511963026,161.6,214.79,214.72,37.01926991]
[1731511963218,161.6,214.78,214.72,37.01926991]
[1731511963635,20.0,214.77,214.72,37.01926991]
[1731511963809,161.6,214.76,214.72,37.01926991]
[1731511964141,161.6,214.76,214.7,37.01926991]
[1731511964310,161.6,214.76,214.63,0.1]
[1731511964311,161.6,214.75,214.55,0.1]
[1731511964511,161.6,214.74,214.55,0.1]
[1731511964722,161.6,214.74,214.53,0.1]
[1731511964920,161.6,214.74,214.54,0.1]
[1731511965122,5.73068187,214.8,214.52,0.1]
[1731511965123,181.6,214.73,214.52,0.1]
[1731511965315,4.6562,214.77,214.52,0.1]
[1731511965316,20.0,214.71,214.55,0.1]
[1731511965523,20.0,214.71,214.64,37.01926991]
[1731511965721,20.0,214.71,214.5,37.01926991]
[1731511965722,161.6,214.7,214.65,0.1]
[1731511966540,161.6,214.7,214.69,37.01926991]
[1731511966729,37.01926991,214.81,214.69,37.01926991]
[1731511966917,37.01926991,214.77,214.69,37.01926991]
[1731511967231,37.01926991,214.75,214.65,37.01926991]
[1731511967550,161.6,214.74,214.73,37.01926991]
[1731511967833,37.01926991,214.82,214.73,37.01926991]
[1731511968033,161.6,214.81,214.73,37.01926991]
[1731511968713,20.0,214.8,214.73,37.01926991]
[1731511968910,20.0,214.8,214.61,37.01926991]
[1731511968911,161.6,214.79,214.71,37.01926991]
[1731511969131,20.0,214.78,214.71,37.01926991]
[1731511969445,16.9661,214.83,214.75,37.01926991]
[1731511969446,161.6,214.77,214.75,37.01926991]
[1731511969623,161.6,214.76,214.75,37.01926991]
[1731511969825,161.6,214.82,214.75,37.01926991]
[1731511970139,161.6,214.81,214.75,37.01926991]
[1731511970332,161.6,214.81,214.64,0.1]
[1731511970333,161.6,214.81,214.77,37.01926991]
[1731511970643,161.6,214.8,214.79,37.01926991]
[1731511971223,161.6,214.82,214.79,37.01926991]
[1731511971436,161.6,214.82,214.72,37.01926991]
[1731511971437,161.6,214.82,214.81,37.01926991]
[1731511971629,0.1,214.91,214.81,37.01926991]
[1731511971835,161.6,214.9,214.84,37.01926991]
[1731511972252,161.6,214.89,214.88,37.01926991]
[1731511972544,161.6,214.93,214.88,37.01926991]
[1731511972868,161.6,214.92,214.84,20.0]
[1731511973223,161.6,214.92,214.91,37.01926991]
[1731511973430,161.6,215.0,214.91,37.01926991]
[1731511973636,161.6,214.99,214.94,37.01926991]
[1731511973838,161.6,214.98,214.94,37.01926991]
[1731511974128,161.6,214.97,214.96,37.01926991]
[1731511974437,161.6,215.0,214.96,37.01926991]
[1731511974632,0.4495152,215.01,214.94,37.01926991]
[1731511974633,0.4495152,215.01,215.0,37.01926991]
[1731511975039,0.4495152,215.01,214.98,37.01926991]
[1731511975245,0.4495152,215.01,214.97,37.01926991]
[1731511975451,0.4495152,215.01,214.95,37.01926991]
[1731511975651,0.4495152,215.01,214.97,37.01926991]
[1731511975969,0.4495152,215.01,214.99,37.01926991]
[1731511977147,0.4495152,215.01,214.86,20.0]
[1731511977335,37.01926991,215.0,214.83,0.1]
[1731511977534,0.4495152,215.01,214.93,37.01926991]
[1731511978350,20.4495152,215.01,214.93,37.01926991]
[1731511979050,20.0,214.97,214.87,37.01926991]
[1731511979240,161.6,214.96,214.93,37.01926991]
[1731511979448,161.6,214.95,214.93,37.01926991]
[1731511979837,20.0,214.97,214.76,5.71807913]
[1731511979838,161.6,214.94,214.89,37.01926991]
[1731511980040,20.0,214.92,214.85,37.01926991]
[1731511980247,20.0,214.9,214.83,37.01926991]
[1731511980557,161.6,214.91,214.87,37.01926991]
[1731511981055,161.6,214.9,214.87,37.01926991]
[1731511981356,161.6,214.89,214.85,37.01926991]
[1731511982040,161.6,214.89,214.87,37.01926991]
[1731511982448,161.6,214.89,214.85,37.01926991]
[1731511982655,161.6,214.84,214.81,37.01926991]
[1731511982846,161.6,214.83,214.77,37.01926991]
[1731511983048,37.01926991,214.8,214.71,37.01926991]
[1731511983253,181.6,214.79,214.73,37.01926991]
[1731511983497,181.6,214.79,214.63,0.1]
[1731511983757,161.6,214.78,214.75,37.01926991]
[1731511983955,161.6,214.77,214.75,37.01926991]
[1731511984559,161.6,214.77,214.71,37.01926991]
[1731511984755,161.6,214.76,214.72,37.01926991]
[1731511985653,0.1,214.88,214.72,37.01926991]
[1731511985654,161.6,214.75,214.74,37.01926991]
[1731511986530,5.62658117,214.9,214.74,37.01926991]
[1731511986531,0.1,214.86,214.74,37.01926991]
[1731511986733,161.6,214.85,214.76,37.01926991]
[1731511986953,20.0,214.84,214.76,37.01926991]
[1731511987158,20.0,214.82,214.74,37.01926991]
[1731511987347,20.0,214.82,214.76,37.01926991]
[1731511987543,4.6536,214.89,214.72,37.01926991]
[1731511987544,161.6,214.81,214.8,37.01926991]
[1731511987749,161.6,214.9,214.8,37.01926991]
[1731511987945,161.6,214.89,214.87,37.01926991]
[1731511988159,161.6,214.88,214.85,37.01926991]
[1731511988532,161.6,214.88,214.87,37.01926991]
[1731511988742,161.6,214.95,214.87,37.01926991]
[1731511989049,161.6,214.94,214.93,37.01926991]
[1731511989366,161.6,214.87,214.85,37.01926991]
[1731511989541,161.6,214.86,214.82,37.01926991]
[1731511989739,161.6,214.85,214.78,37.01926991]
[1731511990069,161.6,214.84,214.76,37.01926991]
[1731511990358,161.6,214.84,214.78,37.01926991]
[1731511990734,161.6,214.84,214.8,37.01926991]
[1731511991133,161.6,214.84,214.78,37.01926991]
[1731511991865,161.6,214.84,214.76,37.01926991]
[1731511992034,198.61926991,214.84,214.76,37.01926991]
[1731511992233,161.6,214.84,214.77,37.01926991]
[1731511992460,161.6,214.84,214.81,37.01926991]
[1731511992842,161.6,214.83,214.74,0.1]
[1731511993549,161.6,214.83,214.73,20.0]
[1731511993751,161.6,214.82,214.73,20.0]
[1731511993960,161.6,214.94,214.74,0.1]
[1731511994154,161.6,214.93,214.74,0.1]
[1731511994860,161.6,214.93,214.89,37.01926991]
[1731511995057,161.6,214.92,214.89,37.01926991]
[1731511995357,161.6,214.92,214.73,20.0]
[1731511995358,161.6,214.92,214.85,37.01926991]
[1731511995561,161.6,214.85,214.81,37.01926991]
[1731511995770,161.6,214.84,214.77,37.01926991]
[1731511995955,37.11926991,214.88,214.63,0.1]
[1731511995956,198.61926991,214.83,214.63,0.1]
[1731511996159,161.6,214.82,214.77,37.01926991]
[1731511996460,161.6,214.82,214.66,0.1]
[1731511996461,161.6,214.81,214.75,37.01926991]
[1731511997034,161.6,214.81,214.77,37.01926991]
[1731511997236,161.6,214.81,214.61,37.01926991]
[1731511997237,161.6,214.81,214.75,37.01926991]
[1731511997452,161.6,214.81,214.77,37.01926991]
[1731511997860,161.6,214.8,214.77,37.01926991]
[1731511998037,13.70888976,214.96,214.79,37.01926991]
[1731511998239,161.6,214.95,214.74,0.1]
[1731511998566,161.6,214.94,214.85,37.01926991]
[1731511998736,161.6,214.93,214.85,37.01926991]
[1731511999057,161.6,214.93,214.87,37.01926991]
[1731511999239,161.6,214.92,214.67,0.1]
[1731511999435,37.01926991,214.69,214.53,18.718963]
[1731511999653,37.01926991,214.69,214.41,12.3713]
[1731511999654,37.01926991,214.69,214.57,37.01926991]
[1731511999841,37.01926991,214.64,214.44,0.1]
[1731512000054,37.01926991,214.64,214.53,37.01926991]
[1731512000255,37.11926991,214.64,214.53,37.01926991]
[1731512000562,20.22549,214.66,214.57,37.01926991]
[1731512000762,161.6,214.65,214.57,37.01926991]
[1731512000951,18.630846,214.69,214.63,37.01926991]
[1731512000952,161.6,214.64,214.63,37.01926991]
[1731512001163,67.29086991,214.79,214.63,37.01926991]
[1731512001365,31.577875,214.75,214.67,37.01926991]
[1731512001540,161.6,214.65,214.59,37.01926991]
[1731512001745,161.6,214.65,214.63,37.01926991]
[1731512002047,12.9519,214.75,214.63,37.01926991]
[1731512002048,180.227261,214.74,214.63,37.01926991]
[1731512002238,161.6,214.74,214.68,37.01926991]
[1731512002441,161.6,214.73,214.66,37.01926991]
[1731512002658,37.01926991,214.77,214.53,12.5658]
[1731512002659,161.6,214.72,214.64,37.01926991]
[1731512003042,37.01926991,214.71,214.62,37.01926991]
[1731512003359,161.6,214.7,214.62,37.01926991]
[1731512003554,161.6,214.7,214.64,37.01926991]
[1731512003953,161.6,214.7,214.62,37.01926991]
[1731512004139,198.61926991,214.69,214.58,37.01926991]
[1731512004344,37.01926991,214.63,214.54,37.01926991]
[1731512004543,12.2337,214.65,214.41,0.1]
[1731512004544,57.01926991,214.61,214.5,37.01926991]
[1731512004738,57.01926991,214.61,214.52,37.01926991]
[1731512005155,161.6,214.6,214.52,37.01926991]
[1731512005439,57.01926991,214.59,214.48,37.01926991]
[1731512005668,161.6,214.58,214.5,37.01926991]
[1731512005983,161.6,214.57,214.48,37.01926991]
[1731512006153,161.6,214.57,214.52,37.01926991]
[1731512006358,161.6,214.56,214.54,37.01926991]
[1731512006568,161.6,214.55,214.54,37.01926991]
[1731512006872,161.6,214.62,214.54,37.01926991]
[1731512007048,161.6,214.62,214.5,37.01926991]
[1731512007049,161.6,214.64,214.62,20.0]
[1731512007251,161.6,214.74,214.63,37.01926991]
[1731512007448,37.01926991,214.83,214.62,20.1]
[1731512007449,161.6,214.73,214.7,37.01926991]
[1731512007643,23.13676354,214.92,214.72,37.01926991]
[1731512007644,161.6,214.78,214.72,37.01926991]
[1731512007977,12.6775,214.84,214.69,0.1]
[1731512007978,161.6,214.77,214.74,37.01926991]
[1731512008470,12.6775,214.84,214.63,5.59365562]
[1731512008471,161.6,214.76,214.7,37.01926991]
[1731512008676,161.6,214.76,214.68,37.01926991]
[1731512008844,161.6,214.76,214.7,37.01926991]
[1731512009044,161.6,214.76,214.72,37.01926991]
[1731512009250,161.6,214.76,214.74,37.01926991]
[1731512010069,161.6,214.82,214.77,0.1]
[1731512010257,31.6312,214.9,214.79,37.01926991]
[1731512010258,37.01926991,214.88,214.79,37.01926991]
[1731512010440,31.6312,214.9,214.77,37.01926991]
[1731512010441,37.01926991,214.86,214.77,37.01926991]
[1731512010845,161.6,214.85,214.77,37.01926991]
[1731512011165,37.01926991,214.82,214.73,37.01926991]
[1731512011463,37.01926991,214.74,214.65,37.01926991]
[1731512011763,37.01926991,214.74,214.58,0.1]
[1731512011764,161.6,214.73,214.7,37.01926991]
[1731512011963,37.01926991,214.82,214.72,37.01926991]
[1731512012156,161.6,214.81,214.75,37.01926991]
[1731512012357,161.6,214.8,214.73,37.01926991]
[1731512012746,0.1,214.89,214.61,37.01926991]
[1731512012747,161.6,214.79,214.74,0.1]
[1731512012947,161.6,214.79,214.72,37.11926991]
[1731512012948,161.6,214.88,214.73,0.1]
[1731512013163,161.6,214.87,214.76,0.1]
[1731512013460,161.6,214.86,214.63,0.2]
[1731512013648,161.6,214.86,214.63,0.1]
[1731512013649,166.2545,214.85,214.63,0.1]
[1731512013973,161.6,214.84,214.67,0.1]
[1731512014149,12.2058,214.92,214.81,37.01926991]
[1731512014150,161.6,214.83,214.81,37.01926991]
[1731512014356,161.6,214.82,214.76,0.1]
[1731512014556,161.6,214.91,214.81,37.01926991]
[1731512014753,161.6,214.9,214.81,37.01926991]
[1731512014949,161.6,214.9,214.72,37.01926991]
[1731512015268,161.6,214.89,214.72,37.11926991]
[1731512015470,161.6,214.88,214.72,37.11926991]
[1731512015773,161.6,214.88,214.69,0.2]
[1731512016269,20.0,214.86,214.78,37.01926991]
[1731512016468,161.6,214.85,214.78,37.01926991]
[1731512016670,161.6,214.85,214.8,37.01926991]
[1731512017256,161.6,214.85,214.84,37.01926991]
[1731512017569,20.0,214.91,214.84,37.01926991]
[1731512017746,161.6,214.9,214.86,37.01926991]
[1731512017945,161.6,214.9,214.84,37.01926991]
[1731512018147,161.6,214.91,214.89,37.01926991]
[1731512018445,37.01926991,214.98,214.9,37.01926991]
[1731512018647,37.01926991,214.96,214.86,37.01926991]
[1731512018948,161.6,214.97,214.88,37.01926991]
[1731512019356,20.0,214.95,214.86,37.01926991]
[1731512019558,37.01926991,214.94,214.84,37.01926991]
[1731512019761,20.0,214.95,214.82,37.01926991]
[1731512019762,37.01926991,214.9,214.82,37.01926991]
[1731512019970,37.01926991,214.9,214.75,0.1]
[1731512019971,20.0,214.89,214.8,37.01926991]
[1731512020172,20.0,214.89,214.7,0.1]
[1731512020173,37.01926991,214.86,214.7,0.1]
[1731512020356,161.6,214.85,214.77,37.01926991]
[1731512020552,161.6,214.84,214.77,37.01926991]
[1731512020762,161.6,214.84,214.79,37.01926991]
[1731512021071,161.6,214.84,214.72,37.01926991]
[1731512021072,161.6,214.84,214.81,37.01926991]
[1731512021371,161.6,214.88,214.83,37.01926991]
[1731512021571,161.6,214.95,214.88,37.01926991]
[1731512021763,33.177,215.0,214.83,37.01926991]
[1731512021764,161.6,214.94,214.9,37.01926991]
[1731512022074,161.6,214.93,214.92,37.01926991]
[1731512022368,161.6,214.99,214.92,37.01926991]
[1731512022576,161.6,214.99,214.96,37.01926991]
[1731512022874,161.6,214.98,214.94,37.01926991]
[1731512023363,161.6,214.97,214.94,37.01926991]
[1731512023556,161.6,214.96,214.94,37.01926991]
[1731512023758,161.6,214.96,214.9,37.01926991]
[1731512023952,161.6,214.95,214.9,37.01926991]
[1731512024160,161.6,214.95,214.88,37.01926991]
[1731512024365,37.01926991,214.98,214.88,37.01926991]
[1731512024366,161.6,214.94,214.88,37.01926991]
[1731512024559,161.6,214.94,214.73,12.6206]
[1731512024560,161.6,214.94,214.9,37.01926991]
[1731512024764,161.6,214.93,214.9,37.01926991]
[1731512025274,161.6,214.93,214.92,37.01926991]
[1731512025463,161.6,214.93,214.88,37.01926991]
[1731512025965,161.6,214.92,214.84,37.01926991]
[1731512026166,161.6,214.91,214.82,37.01926991]
[1731512026470,0.1,214.97,214.71,0.1]
[1731512026471,198.61926991,214.9,214.8,37.01926991]
[1731512026676,12.8368,214.87,214.8,37.01926991]
[1731512026859,161.6,214.86,214.8,37.01926991]
[1731512027573,161.6,214.85,214.78,37.01926991]
[1731512027869,161.6,214.85,214.8,37.01926991]
[1731512028253,161.6,214.8,214.67,0.1]
[1731512028460,37.01926991,214.82,214.72,37.01926991]
[1731512028461,161.6,214.81,214.72,37.01926991]
[1731512028665,161.6,214.8,214.72,37.01926991]
[1731512028876,161.6,214.8,214.76,37.01926991]
[1731512029281,161.6,214.83,214.78,37.01926991]
[1731512029460,161.6,214.82,214.81,37.01926991]
[1731512029862,161.6,214.86,214.81,57.01926991]
[1731512030083,161.6,214.86,214.85,37.01926991]
[1731512030252,161.6,214.95,214.86,20.0]
[1731512030458,68.15816991,215.0,214.86,20.0]
[1731512030459,161.6,214.99,214.93,37.01926991]
[1731512030672,161.6,214.98,214.79,0.1]
[1731512030979,35.7902,215.0,214.8,37.01926991]
[1731512030980,37.01926991,214.89,214.8,37.01926991]
[1731512031184,161.6,214.88,214.8,37.01926991]
[1731512031569,161.6,214.88,214.73,0.1]
[1731512031767,37.01926991,214.89,214.8,37.01926991]
[1731512031768,161.6,214.87,214.8,37.01926991]
[1731512031965,37.01926991,214.89,214.8,37.01926991]
[1731512031966,161.6,214.86,214.8,37.01926991]
[1731512032479,161.6,214.85,214.82,37.01926991]
[1731512032662,161.6,214.84,214.82,37.01926991]
[1731512032854,161.6,214.84,214.8,37.01926991]
[1731512033061,161.6,214.83,214.78,37.01926991]
[1731512033260,161.6,214.83,214.66,0.1]
[1731512033261,161.6,214.82,214.73,37.01926991]
[1731512033463,37.01926991,214.83,214.73,37.01926991]
[1731512033464,161.6,214.81,214.73,37.01926991]
[1731512034074,161.6,214.81,214.77,37.01926991]
[1731512034381,161.6,214.8,214.77,37.01926991]
[1731512034583,161.6,214.8,214.79,37.01926991]
[1731512034767,12.4647,214.88,214.79,37.01926991]
[1731512034768,161.6,214.87,214.79,37.01926991]
[1731512034968,161.6,214.86,214.83,37.01926991]
[1731512036771,161.6,214.86,214.79,37.01926991]
[1731512038366,161.6,214.85,214.79,37.01926991]
[1731512038566,161.6,214.85,214.81,37.01926991]
[1731512038978,161.6,214.85,214.79,37.01926991]
[1731512040291,37.01926991,214.81,214.73,37.01926991]
[1731512040486,161.6,214.8,214.75,37.01926991]
[1731512040791,161.6,214.79,214.72,37.11926991]
[1731512040978,161.6,214.87,214.73,0.1]
[1731512041285,161.6,214.86,214.81,37.01926991]
[1731512041485,161.6,214.85,214.79,37.01926991]
[1731512041997,37.01926991,214.83,214.73,37.01926991]
[1731512042295,37.01926991,214.77,214.67,37.01926991]
[1731512042586,37.01926991,214.75,214.67,37.01926991]
[1731512042794,161.6,214.76,214.69,37.01926991]
[1731512043096,37.01926991,214.73,214.65,37.01926991]
[1731512043269,174.7008,214.72,214.67,37.01926991]
[1731512043472,161.6,214.71,214.69,37.01926991]
[1731512043677,161.6,214.77,214.71,37.01926991]
[1731512043987,161.6,214.76,214.73,37.01926991]
[1731512044371,161.6,214.76,214.75,37.01926991]
[1731512044569,161.6,214.76,214.61,42.603246]
[1731512044570,161.6,214.76,214.73,37.01926991]
[1731512044777,161.6,214.76,214.61,42.603246]
[1731512044778,161.6,214.75,214.69,37.01926991]
[1731512045183,161.6,214.75,214.39,32.91507968]
[1731512045184,37.01926991,214.72,214.63,37.01926991]
[1731512045389,37.01926991,214.7,214.61,37.01926991]
[1731512045591,20.0,214.68,214.61,37.01926991]
[1731512045792,181.6,214.69,214.65,37.01926991]
[1731512045793,161.6,214.69,214.65,37.01926991]
[1731512045964,161.6,214.69,214.63,37.01926991]
[1731512046586,161.6,214.69,214.65,37.01926991]
[1731512047306,13.2008,214.79,214.67,37.01926991]
[1731512047307,161.6,214.73,214.67,37.01926991]
[1731512047501,161.6,214.73,214.69,37.01926991]
[1731512047803,161.6,214.73,214.6,37.01926991]
[1731512047804,20.0,214.7,214.6,37.01926991]
[1731512047974,198.61926991,214.69,214.6,37.01926991]
[1731512048688,161.6,214.69,214.64,37.01926991]
[1731512048888,161.6,214.68,214.67,23.776884]
[1731512049094,161.6,214.67,214.65,23.776884]
[1731512049295,161.6,214.67,214.62,37.01926991]
[1731512049476,161.6,214.66,214.63,23.776884]
[1731512049669,161.6,214.66,214.6,37.01926991]
[1731512049883,161.6,214.65,214.6,37.01926991]
[1731512050192,161.6,214.65,214.5,37.01926991]
[1731512050193,20.0,214.61,214.5,37.01926991]
[1731512050388,37.01926991,214.55,214.44,0.1]
[1731512050591,161.6,214.54,214.46,37.01926991]
[1731512050797,161.6,214.54,214.43,5.72719831]
[1731512050798,161.6,214.54,214.51,37.01926991]
[1731512050972,161.6,214.53,214.51,37.01926991]
[1731512051592,161.6,214.64,214.55,0.1]
[1731512051778,161.6,214.73,214.63,37.01926991]
[1731512052093,161.6,214.72,214.58,0.1]
[1731512052284,12.7791,214.74,214.55,5.69691886]
[1731512052285,161.6,214.71,214.63,0.1]
[1731512052484,161.6,214.71,214.61,37.01926991]
[1731512052485,161.6,214.79,214.71,37.01926991]
[1731512052689,161.6,214.82,214.79,23.776884]
[1731512052872,37.01926991,214.91,214.83,23.776884]
[1731512052873,161.6,214.9,214.83,23.776884]
[1731512053074,161.6,214.89,214.88,37.01926991]
[1731512053390,0.80438131,214.99,214.7,12.4636]
[1731512053391,161.6,214.98,214.85,23.776884]
[1731512053571,37.01926991,214.96,214.87,23.776884]
[1731512053777,161.6,214.95,214.86,37.01926991]
[1731512053981,13.2202,214.99,214.72,37.11926991]
[1731512053982,37.01926991,214.9,214.8,37.01926991]
[1731512054297,37.01926991,214.88,214.79,23.776884]
[1731512054600,37.01926991,214.86,214.76,37.01926991]
[1731512054773,37.01926991,214.8,214.72,37.01926991]
[1731512054972,161.6,214.79,214.7,37.01926991]
[1731512055172,37.01926991,214.76,214.68,37.01926991]
[1731512055398,161.6,214.78,214.7,37.01926991]
[1731512055693,161.6,214.77,214.74,37.01926991]
[1731512056274,161.6,214.77,214.76,37.01926991]
[1731512056591,161.6,214.82,214.76,37.01926991]
[1731512056896,161.6,214.81,214.77,23.776884]
[1731512057096,161.6,214.8,214.77,23.776884]
[1731512057298,161.6,214.8,214.76,37.01926991]